bitfinex-derivatives/quotes_BTCF0:USTF0_20250722
["timestamp","ask_amount","ask_price","bid_price","bid_amount"]
[1753190702303,0.61786864,119340.0,119330.0,0.02807]
[1753190702505,0.61886864,119340.0,119330.0,0.195581]
[1753190702703,0.264427,119340.0,119330.0,0.195581]
[1753190703303,0.61886864,119340.0,119330.0,0.214351]
[1753190703700,0.61986864,119340.0,119330.0,0.214351]
[1753190704504,0.61986864,119340.0,119330.0,0.237921]
[1753190704904,0.265427,119340.0,119330.0,0.237921]
[1753190705105,0.09793,119340.0,119330.0,0.253551]
[1753190705301,0.07303,119340.0,119330.0,0.60799264]
[1753190706111,0.264527,119340.0,119330.0,0.60799264]
[1753190707404,0.07303,119340.0,119330.0,0.96879264]
[1753190707715,0.03919,119340.0,119330.0,0.96879264]
[1753190707909,0.01442,119340.0,119330.0,0.96879264]
[1753190708414,0.01442,119340.0,119330.0,1.01382833]
[1753190709310,0.01442,119340.0,119330.0,1.08063135]
[1753190709804,0.01037,119340.0,119330.0,1.08063135]
[1753190710010,0.002,119340.0,119330.0,1.08063135]
[1753190710313,0.00987,119340.0,119330.0,1.08063135]
[1753190711110,0.00987,119340.0,119330.0,1.65847135]
[1753190712511,0.002,119340.0,119330.0,1.65847135]
[1753190713510,0.002,119340.0,119330.0,1.61343566]
[1753190714019,0.00987,119340.0,119330.0,1.61343566]
[1753190714908,0.181367,119340.0,119330.0,1.03559566]
[1753190715112,0.59402864,119340.0,119330.0,1.30411598]
[1753190715421,0.61792864,119340.0,119330.0,0.65951296]
[1753190715719,0.263487,119340.0,119330.0,0.65951296]
[1753190716107,0.263487,119340.0,119330.0,1.0139546]
[1753190716920,0.239587,119340.0,119330.0,1.0139546]
[1753190719120,0.0308925,119340.0,119330.0,0.96879264]
[1753190719420,0.1813672,119340.0,119330.0,1.0139546]
[1753190720322,0.2215572,119340.0,119330.0,1.0139546]
[1753190720522,0.23858303,119340.0,119330.0,1.0139546]
[1753190721122,0.23858303,119340.0,119330.0,0.65951296]
[1753190721322,0.25661303,119340.0,119330.0,1.0139546]
[1753190722426,0.25661303,119340.0,119330.0,0.65951296]
[1753190722628,0.25661303,119340.0,119330.0,1.0139546]
[1753190722927,0.63495467,119340.0,119330.0,0.49200196]
[1753190723136,0.63495467,119340.0,119330.0,0.2535512]
[1753190723327,0.28051303,119340.0,119330.0,0.2535512]
[1753190723521,0.28051303,119340.0,119330.0,0.6143512]
[1753190724326,0.28051303,119340.0,119330.0,0.65951316]
[1753190724827,0.28051303,119340.0,119330.0,0.29871316]
[1753190725027,0.28051303,119340.0,119330.0,0.2535512]
[1753190727026,0.63495467,119340.0,119330.0,0.2535512]
[1753190727423,0.28051303,119340.0,119330.0,0.2535512]
[1753190728129,0.2395872,119340.0,119330.0,1.0139548]
[1753190728328,0.8173072,119340.0,119330.0,0.6531548]
[1753190728530,0.83433951,119340.0,119330.0,0.6531548]
[1753190728730,0.85823951,119340.0,119330.0,0.6531548]
[1753190730124,0.83433951,119340.0,119330.0,1.0139548]
[1753190730329,0.25661951,119340.0,119330.0,0.6531548]
[1753190730531,0.83433951,119340.0,119330.0,1.0139548]
[1753190730728,0.07109231,119340.0,119330.0,1.0139548]
[1753190731033,0.77611951,119340.0,119330.0,1.0139548]
[1753190731332,0.60862231,119340.0,119330.0,1.0139548]
[1753190731535,0.77611951,119340.0,119330.0,1.0139548]
[1753190732027,0.03090231,119340.0,119330.0,1.0139548]
[1753190732233,0.00987,119340.0,119330.0,0.96879284]
[1753190732429,0.1773672,119340.0,119330.0,0.60799284]
[1753190732635,0.2215572,119340.0,119330.0,0.60799284]
[1753190732834,0.2395872,119340.0,119330.0,0.60799294]
[1753190733033,0.61792884,119340.0,119330.0,0.29876948]
[1753190733241,1.21264335,119340.0,119330.0,0.29876948]
[1753190733934,0.85820171,119340.0,119330.0,0.29876948]
[1753190734839,0.85820171,119340.0,119330.0,0.65321112]
[1753190736034,0.8411672,119340.0,119330.0,0.60799294]
[1753190737329,0.8411672,119340.0,119330.0,0.65321328]
[1753190737946,0.8411672,119340.0,119330.0,0.60799294]
[1753190738243,0.8411672,119340.0,119330.0,0.65321203]
[1753190738650,0.8172672,119340.0,119330.0,0.67580851]
[1753190738850,0.8172672,119340.0,119330.0,0.72102794]
[1753190739049,0.8172672,119340.0,119330.0,0.67580851]
[1753190739445,0.8172672,119340.0,119330.0,1.03660851]
[1753190739751,0.7991972,119340.0,119330.0,1.03660851]
[1753190740150,0.8178672,119340.0,119330.0,1.03660851]
[1753190740346,0.8178672,119340.0,119330.0,0.67580851]
[1753190740951,0.2402272,119340.0,119330.0,0.67580851]
[1753190741249,0.8178672,119340.0,119330.0,0.67580851]
[1753190741951,0.8178672,119340.0,119330.0,1.03660851]
[1753190742848,0.7991972,119340.0,119330.0,1.03660851]
[1753190744454,0.2215572,119340.0,119330.0,1.03660851]
[1753190744655,0.7991972,119340.0,119330.0,1.03660851]
[1753190745154,0.2215572,119340.0,119330.0,1.03660851]
[1753190745353,0.7991572,119340.0,119330.0,1.03660851]
[1753190745544,0.8178272,119340.0,119330.0,1.03660851]
[1753190745747,0.7991572,119340.0,119330.0,1.03660851]
[1753190746352,0.2215572,119340.0,119330.0,1.03660851]
[1753190746554,0.7991572,119340.0,119330.0,1.03660851]
[1753190746748,0.1813672,119340.0,119330.0,1.09669843]
[1753190747351,0.00987,119340.0,119330.0,1.09669843]
[1753190747660,0.1773672,119340.0,119330.0,1.09669843]
[1753190747858,0.1968672,119340.0,119330.0,1.09669843]
[1753190748058,0.2196872,119340.0,119330.0,1.67425843]
[1753190749361,0.2196872,119340.0,119330.0,1.03660851]
[1753190749560,0.2196872,119340.0,119330.0,1.61416851]
[1753190751664,0.2196872,119340.0,119330.0,1.25972687]
[1753190751865,0.2196872,119340.0,119330.0,1.61416851]
[1753190752165,0.2196872,119340.0,119330.0,1.61412851]
[1753190752366,0.2196872,119340.0,119330.0,1.25968687]
[1753190752564,0.2383572,119340.0,119330.0,0.68216687]
[1753190752771,0.61569884,119340.0,119330.0,0.89888687]
[1753190752965,0.61569884,119340.0,119330.0,0.32136687]
[1753190753171,0.2612572,119340.0,119330.0,0.32136687]
[1753190754072,0.2612572,119340.0,119330.0,0.67580851]
[1753190754867,0.2612572,119340.0,119330.0,0.32136687]
[1753190757866,1.55397884,119340.0,119330.0,0.02807]
[1753190758874,1.57102178,119340.0,119330.0,0.07330666]
[1753190760371,1.57102178,119340.0,119330.0,0.02807]
[1753190761171,1.21022178,119340.0,119330.0,0.04573]
[1753190761366,1.21022178,119340.0,119330.0,0.28251796]
[1753190761573,1.21022178,119340.0,119330.0,0.29861796]
[1753190761770,0.83288014,119340.0,119330.0,0.6530596]
[1753190761973,0.25540014,119340.0,119330.0,1.0138596]
[1753190762173,0.23673014,119340.0,119330.0,1.0138596]
[1753190762877,0.23673014,119340.0,119330.0,0.6530596]
[1753190763078,0.25540014,119340.0,119330.0,0.6530596]
[1753190763981,0.2383572,119340.0,119330.0,0.6530596]
[1753190764674,0.1968672,119340.0,119330.0,1.0138596]
[1753190764879,0.1813672,119340.0,119330.0,0.96862294]
[1753190765178,0.1813672,119340.0,119330.0,1.03672031]
[1753190766080,0.2196872,119340.0,119330.0,1.03672031]
[1753190766780,0.1968672,119340.0,119330.0,1.03672031]
[1753190767578,0.2196872,119340.0,119330.0,1.03672031]
[1753190768080,0.2196872,119340.0,119330.0,1.09681023]
[1753190768379,0.2196872,119340.0,119330.0,1.03672031]
[1753190771377,0.2366872,119340.0,119330.0,1.03672031]
[1753190776480,0.2366872,119340.0,119330.0,0.68227867]
[1753190776986,0.2366872,119340.0,119330.0,1.03672031]
[1753190777187,0.1968672,119340.0,119330.0,1.03672031]
[1753190777775,0.2210072,119340.0,119330.0,1.03672031]
[1753190779286,0.2210072,119340.0,119330.0,1.09681023]
[1753190779880,0.2210072,119340.0,119330.0,0.92929893]
[1753190780088,1.55241884,119340.0,119330.0,0.07326553]
[1753190780589,0.08272,119320.0,119310.0,0.02743]
[1753190780884,0.2622894,119310.0,119300.0,0.06044]
[1753190781084,0.2042434,119300.0,119290.0,0.06629]
[1753190781289,1.55478504,119300.0,119290.0,0.2338574]
[1753190781488,0.84764935,119300.0,119290.0,0.2338574]
[1753190781993,1.20844935,119300.0,119290.0,0.2338574]
[1753190782680,1.20844935,119300.0,119290.0,0.2612874]
[1753190782882,0.84764935,119300.0,119290.0,0.2612874]
[1753190783289,0.84764935,119300.0,119290.0,0.2632874]
[1753190783489,0.84764935,119300.0,119290.0,0.2672874]
[1753190786091,0.86441058,119300.0,119290.0,0.03343]
[1753190786295,1.74730022,119300.0,119290.0,0.006]
[1753190786491,1.74734022,119300.0,119290.0,0.006]
[1753190786797,1.74734022,119300.0,119290.0,0.03343]
[1753190786993,1.74734022,119300.0,119290.0,0.006]
[1753190787597,1.57973222,119300.0,119290.0,0.03343]
[1753190787993,1.57973222,119300.0,119290.0,0.05635]
[1753190788797,1.57973222,119300.0,119290.0,0.05235]
[1753190788993,1.57973222,119300.0,119290.0,0.05035]
[1753190789194,0.2042574,119290.0,119280.0,0.08787]
[1753190789493,0.2623315,119280.0,119270.0,0.36590319]
[1753190789695,0.8396115,119280.0,119270.0,0.36590319]
[1753190789897,1.55485314,119280.0,119270.0,0.36590319]
[1753190790093,1.55485314,119280.0,119270.0,0.3469013]
[1753190790294,0.8396115,119280.0,119270.0,0.3469013]
[1753190790693,0.8396115,119280.0,119270.0,0.3392513]
[1753190790901,1.2004115,119280.0,119270.0,0.3392513]
[1753190791899,1.2004115,119280.0,119270.0,0.3402513]
[1753190792099,1.55485314,119280.0,119270.0,0.3432513]
[1753190792295,1.55485314,119280.0,119270.0,0.3509013]
[1753190792498,1.57169793,119280.0,119270.0,0.3509013]
[1753190792895,1.21089793,119280.0,119270.0,0.3509013]
[1753190793996,1.57169793,119280.0,119270.0,0.2556137]
[1753190795306,1.57169793,119280.0,119270.0,0.08803]
[1753190796095,1.57169793,119280.0,119270.0,0.2556255]
[1753190797704,1.57169793,119280.0,119270.0,0.08803]
[1753190797896,1.57169793,119280.0,119270.0,0.004]
[1753190800103,1.92613957,119280.0,119270.0,0.004]
[1753190800603,1.57169793,119280.0,119270.0,0.004]
[1753190801706,1.57169793,119280.0,119270.0,0.1715955]
[1753190802404,1.57169793,119280.0,119270.0,0.004]
[1753190802806,0.63997629,119280.0,119270.0,0.1715955]
[1753190803006,1.57173793,119280.0,119270.0,0.2626055]
[1753190803200,1.57173793,119280.0,119270.0,0.2707055]
[1753190803505,1.21729629,119280.0,119270.0,0.2707055]
[1753190803698,1.57173793,119280.0,119270.0,0.2707055]
[1753190804195,1.57173793,119280.0,119270.0,0.09501]
[1753190804403,1.57173793,119280.0,119270.0,0.2626055]
[1753190805904,1.21093793,119280.0,119270.0,0.2626055]
[1753190806092,1.21093793,119280.0,119270.0,0.2707055]
[1753190807205,1.21093793,119280.0,119270.0,0.2677055]
[1753190807701,1.21093793,119280.0,119270.0,0.2667055]
[1753190807907,1.21193793,119280.0,119270.0,0.2667055]
[1753190809100,1.22969244,119280.0,119270.0,0.2667055]
[1753190809703,0.8752508,119280.0,119270.0,0.6275055]
[1753190809900,0.8752508,119280.0,119270.0,0.09911]
[1753190810105,0.8752508,119280.0,119270.0,0.2667055]
[1753190810306,1.22969244,119280.0,119270.0,0.2667055]
[1753190811808,0.8752508,119280.0,119270.0,0.2667055]
[1753190812108,1.22969244,119280.0,119270.0,0.2667055]
[1753190813700,1.22969244,119280.0,119270.0,0.09911]
[1753190813904,1.59049244,119280.0,119270.0,0.09101]
[1753190815507,1.57273793,119280.0,119270.0,0.09101]
[1753190815708,1.59055111,119280.0,119270.0,0.09101]
[1753190815909,1.57273793,119280.0,119270.0,0.09101]
[1753190816210,1.21193793,119280.0,119270.0,0.09101]
[1753190816912,1.22975683,119280.0,119270.0,0.09101]
[1753190817511,1.21193793,119280.0,119270.0,0.09101]
[1753190818113,1.22975897,119280.0,119270.0,0.09101]
[1753190818714,1.59055897,119280.0,119270.0,0.09101]
[1753190819409,1.23611733,119280.0,119270.0,0.09101]
[1753190819617,1.59055897,119280.0,119270.0,0.09101]
[1753190820910,1.59055897,119280.0,119270.0,0.08686]
[1753190821615,1.22967897,119280.0,119270.0,0.2586055]
[1753190823115,0.65243897,119280.0,119270.0,0.2667055]
[1753190823317,0.87519733,119280.0,119270.0,0.98194714]
[1753190823616,0.87519733,119280.0,119270.0,0.62114714]
[1753190823916,0.87519733,119280.0,119270.0,0.98194714]
[1753190824618,0.87519733,119280.0,119270.0,0.62114714]
[1753190824815,0.87519733,119280.0,119270.0,0.2667055]
[1753190825012,1.22963897,119280.0,119270.0,0.2667055]
[1753190829922,1.22963897,119280.0,119270.0,0.2586055]
[1753190830314,0.2617855,119270.0,119260.0,0.06515]
[1753190830519,0.2009195,119260.0,119250.0,0.7036033]
[1753190830823,1.19336114,119260.0,119250.0,0.6991933]
[1753190831124,1.19336114,119260.0,119250.0,0.3383933]
[1753190831518,1.19336114,119260.0,119250.0,0.6991933]
[1753190832023,1.19336114,119260.0,119250.0,0.7021933]
[1753190832222,1.19336114,119260.0,119250.0,0.6803733]
[1753190832423,1.19336114,119260.0,119250.0,0.7021933]
[1753190832924,1.19336114,119260.0,119250.0,0.7031933]
[1753190833111,0.61624114,119260.0,119250.0,0.7031933]
[1753190833318,1.19336114,119260.0,119250.0,0.7031933]
[1753190833719,1.19336114,119260.0,119250.0,0.7021933]
[1753190833918,0.8389195,119260.0,119250.0,0.6991933]
[1753190834324,0.8389195,119260.0,119250.0,0.7074633]
[1753190834619,0.8388795,119260.0,119250.0,0.7074633]
[1753190835230,0.8388795,119260.0,119250.0,0.7084633]
[1753190835918,0.2617995,119260.0,119250.0,0.7084633]
[1753190836120,0.2617995,119260.0,119250.0,1.06290494]
[1753190836319,0.8388795,119260.0,119250.0,1.06290494]
[1753190836629,0.8388795,119260.0,119250.0,0.7084633]
[1753190838238,0.2617995,119260.0,119250.0,0.7084633]
[1753190838530,0.8388795,119260.0,119250.0,0.7084633]
[1753190839033,0.8388795,119260.0,119250.0,0.76877449]
[1753190839522,0.2617995,119260.0,119250.0,1.12321613]
[1753190839725,0.8132795,119260.0,119250.0,1.12321613]
[1753190840125,0.8388395,119260.0,119250.0,1.12321613]
[1753190840727,0.64567,119260.0,119250.0,1.12321613]
[1753190841226,0.8132796,119260.0,119250.0,1.12321613]
[1753190841622,0.06863,119260.0,119250.0,1.70025613]
[1753190841824,1.27410364,119270.0,119260.0,0.1894296]
[1753190842029,0.9226401,119270.0,119260.0,0.6236496]
[1753190843129,0.9236401,119270.0,119260.0,0.6236496]
[1753190843829,1.27808174,119270.0,119260.0,0.6236496]
[1753190845625,1.27708174,119270.0,119260.0,0.6236496]
[1753190846637,1.27708174,119270.0,119260.0,0.6246496]
[1753190847028,0.9226401,119270.0,119260.0,0.6246496]
[1753190847232,1.27708174,119270.0,119260.0,0.6246496]
[1753190848037,0.9226401,119270.0,119260.0,0.6246496]
[1753190848833,1.27708174,119270.0,119260.0,0.6246496]
[1753190853531,0.09419,119270.0,119260.0,0.97909124]
[1753190853736,0.06863,119270.0,119260.0,1.55601124]
[1753190854128,0.09419,119270.0,119260.0,1.55601124]
[1753190854736,0.02809,119270.0,119260.0,1.55601124]
[1753190855437,0.1956855,119270.0,119260.0,1.55601124]
[1753190855737,0.2192355,119270.0,119260.0,1.55601124]
[1753190856641,0.05164,119270.0,119260.0,1.55601124]
[1753190857338,0.2192355,119270.0,119260.0,1.55601124]
[1753190857533,0.2192355,119270.0,119260.0,1.61632243]
[1753190857838,0.2192355,119270.0,119260.0,1.55601124]
[1753190858042,0.2362255,119270.0,119260.0,1.55601124]
[1753190858539,0.2616455,119270.0,119260.0,1.55601124]
[1753190858833,0.2616455,119270.0,119260.0,0.97909124]
[1753190859038,0.2616455,119270.0,119260.0,1.55593124]
[1753190860239,0.2616455,119270.0,119260.0,0.2638496]
[1753190860539,0.2616455,119270.0,119260.0,0.08797]
[1753190860540,0.99459705,119270.0,119260.0,0.08797]
[1753190860739,0.99459705,119270.0,119260.0,0.001]
[1753190860934,0.2036495,119260.0,119250.0,0.3354727]
[1753190861138,0.61489114,119260.0,119250.0,0.3354727]
[1753190861530,0.2604495,119260.0,119250.0,0.7044327]
[1753190863542,0.2604495,119260.0,119250.0,0.7054327]
[1753190867047,0.2604495,119260.0,119250.0,1.05987434]
[1753190867437,0.02674,119260.0,119250.0,1.05987434]
[1753190867641,0.9630697,119270.0,119260.0,0.2036195]
[1753190867946,0.9804486,119270.0,119260.0,0.6210195]
[1753190869044,0.9628697,119270.0,119260.0,0.6210195]
[1753190869550,0.9638697,119270.0,119260.0,0.6210195]
[1753190871949,1.31831134,119270.0,119260.0,0.6210195]
[1753190872447,0.74159134,119270.0,119260.0,0.6210195]
[1753190872752,1.31827134,119270.0,119260.0,0.6210195]
[1753190873447,1.31827134,119270.0,119260.0,0.2602195]
[1753190873855,1.33585373,119270.0,119260.0,0.2602195]
[1753190874542,0.2604496,119260.0,119250.0,0.7381751]
[1753190874744,0.61489124,119260.0,119250.0,0.7381751]
[1753190874943,0.2350296,119260.0,119250.0,1.10077674]
[1753190875551,0.2604496,119260.0,119250.0,1.10077674]
[1753190876849,0.8370896,119260.0,119250.0,1.10077674]
[1753190877553,0.9629911,119270.0,119260.0,0.2602196]
[1753190877851,0.9627911,119270.0,119260.0,0.6210196]
[1753190878051,0.9627911,119270.0,119260.0,0.97546124]
[1753190878747,0.3861511,119270.0,119260.0,0.6210196]
[1753190878956,0.9637911,119270.0,119260.0,0.6210196]
[1753190879754,0.9627911,119270.0,119260.0,0.6210196]
[1753190879955,0.3861511,119270.0,119260.0,0.6210196]
[1753190880256,0.0002,119280.0,119260.0,1.31483364]
[1753190880457,0.0002,119280.0,119270.0,0.97544714]
[1753190880649,0.0002,119290.0,119280.0,0.2601914]
[1753190880845,0.00830595,119300.0,119290.0,0.2601774]
[1753190881155,0.3443576,119310.0,119300.0,0.2601633]
[1753190881355,0.3022716,119310.0,119300.0,0.6209633]
[1753190881752,0.6630716,119310.0,119300.0,0.2601633]
[1753190881951,0.3022716,119310.0,119300.0,0.2601633]
[1753190882151,0.31985026,119310.0,119300.0,0.6209633]
[1753190882351,0.32808167,119310.0,119300.0,0.6209633]
[1753190882752,0.68252331,119310.0,119300.0,0.6209633]
[1753190882952,0.68552331,119310.0,119300.0,0.6209633]
[1753190883359,0.69052331,119310.0,119300.0,0.6209633]
[1753190883657,0.68852331,119310.0,119300.0,0.6209633]
[1753190883858,0.68552331,119310.0,119300.0,0.6209633]
[1753190884357,1.04632331,119310.0,119300.0,0.2601634]
[1753190884557,1.04632331,119310.0,119300.0,0.2520034]
[1753190884760,0.2035933,119300.0,119290.0,0.9503239]
[1753190884959,0.6324136,119300.0,119290.0,0.9503239]
[1753190885160,0.6324136,119300.0,119290.0,0.3738439]
[1753190885460,0.6324136,119300.0,119290.0,0.3776739]
[1753190886062,0.6344136,119300.0,119290.0,0.3776739]
[1753190886259,0.27997196,119300.0,119290.0,0.3776739]
[1753190886461,0.27997196,119300.0,119290.0,0.74027554]
[1753190886666,0.27997196,119300.0,119290.0,0.3858339]
[1753190886969,0.6344136,119300.0,119290.0,0.3858339]
[1753190887165,0.6344136,119300.0,119290.0,0.3439444]
[1753190887465,0.6344136,119300.0,119290.0,0.3357844]
[1753190887660,0.2529674,119290.0,119280.0,1.29137981]
[1753190887873,0.61484904,119290.0,119280.0,1.29137981]
[1753190888073,0.63209002,119290.0,119280.0,0.31228471]
[1753190888268,0.2604074,119290.0,119280.0,0.31228471]
[1753190888468,0.63208943,119290.0,119280.0,0.31228471]
[1753190888668,0.27764779,119290.0,119280.0,0.67308471]
[1753190888868,0.63208943,119290.0,119280.0,0.67308471]
[1753190889269,0.63208943,119290.0,119280.0,0.31328471]
[1753190891365,0.61484904,119290.0,119280.0,0.35846515]
[1753190892874,0.61484904,119290.0,119280.0,0.67408471]
[1753190893073,0.61484904,119290.0,119280.0,0.72725338]
[1753190893776,0.2604074,119290.0,119280.0,0.72725338]
[1753190893976,0.2604074,119290.0,119280.0,0.68209471]
[1753190894380,0.2604074,119290.0,119280.0,0.72723501]
[1753190898778,0.2604074,119290.0,119280.0,0.36643501]
[1753190899078,0.2590074,119290.0,119280.0,0.36643501]
[1753190899882,0.2590074,119290.0,119280.0,0.72723501]
[1753190900280,0.2590074,119290.0,119280.0,0.36643501]
[1753190900680,0.61344904,119290.0,119280.0,0.36643501]
[1753190901385,0.61344904,119290.0,119280.0,0.72723501]
[1753190902083,0.61344904,119290.0,119280.0,0.36643501]
[1753190905484,0.2590074,119290.0,119280.0,0.36643501]
[1753190905687,0.2590074,119290.0,119280.0,0.72723501]
[1753190906586,0.2590074,119290.0,119280.0,0.7272886]
[1753190906789,0.2590074,119290.0,119280.0,0.68209471]
[1753190907384,0.2590074,119290.0,119280.0,0.32129471]
[1753190907783,0.61344904,119290.0,119280.0,0.32129471]
[1753190909283,0.61344904,119290.0,119280.0,0.36651346]
[1753190910186,0.61344904,119290.0,119280.0,0.14903866]
[1753190910383,0.61344904,119290.0,119280.0,0.23217006]
[1753190910782,1.18960904,119290.0,119280.0,0.23217006]
[1753190911386,1.55140904,119290.0,119280.0,0.06458866]
[1753190911787,1.55140904,119290.0,119280.0,0.23117006]
[1753190912087,1.55340904,119290.0,119280.0,0.23117006]
[1753190912582,1.55340904,119290.0,119280.0,0.06358866]
[1753190913686,1.57066029,119290.0,119280.0,0.04521875]
[1753190913887,1.57066028,119290.0,119280.0,0.04521875]
[1753190915684,1.55340904,119290.0,119280.0,0.04521875]
[1753190915892,0.1998914,119280.0,119270.0,0.41896015]
[1753190916093,0.61541304,119280.0,119270.0,0.42266015]
[1753190916292,0.61541304,119280.0,119270.0,0.38076135]
[1753190917092,0.61541304,119280.0,119270.0,0.3355426]
[1753190917693,0.61641304,119280.0,119270.0,0.3355426]
[1753190918195,0.61641304,119280.0,119270.0,0.3435526]
[1753190918895,0.61741304,119280.0,119270.0,0.3435526]
[1753190922695,0.61741304,119280.0,119270.0,0.2936438]
[1753190922897,0.2531455,119270.0,119260.0,0.3133747]
[1753190923097,0.61515714,119270.0,119260.0,0.3133747]
[1753190923301,1.19127714,119270.0,119260.0,0.3133747]
[1753190924601,0.8368355,119270.0,119260.0,0.3207947]
[1753190924902,0.8368355,119270.0,119260.0,0.6815947]
[1753190925101,0.8368355,119270.0,119260.0,1.03603634]
[1753190925401,0.2607155,119270.0,119260.0,1.03703634]
[1753190925592,0.8367955,119270.0,119260.0,1.03703634]
[1753190926801,0.8367955,119270.0,119260.0,0.6825947]
[1753190927498,0.2607155,119270.0,119260.0,0.6825947]
[1753190930302,0.2607155,119270.0,119260.0,1.03703634]
[1753190931100,0.2607155,119270.0,119260.0,0.6825947]
[1753190935912,0.69620754,119280.0,119270.0,0.1675955]
[1753190936205,0.9624459,119280.0,119270.0,0.2605155]
[1753190936405,1.31688754,119280.0,119270.0,0.2605155]
[1753190937708,1.31788754,119280.0,119270.0,0.2605155]
[1753190938108,1.31888754,119280.0,119270.0,0.2605155]
[1753190940303,1.33660107,119280.0,119270.0,0.2605155]
[1753190943511,0.40611943,119280.0,119270.0,0.6213155]
[1753190943712,0.9644059,119280.0,119270.0,0.97575714]
[1753190943913,0.3884059,119280.0,119270.0,0.6213155]
[1753190944113,0.9643659,119280.0,119270.0,0.6213155]
[1753190944611,0.9633659,119280.0,119270.0,0.6223155]
[1753190945311,0.9623659,119280.0,119270.0,0.6223155]
[1753190945507,0.9623659,119280.0,119270.0,0.3618]
[1753190945713,1.69533176,119280.0,119270.0,0.001]
[1753190945912,1.33453176,119280.0,119270.0,0.2540955]
[1753190946117,1.69533211,119280.0,119270.0,0.0865]
[1753190946313,1.69533211,119280.0,119270.0,0.2540955]
[1753190946719,1.69533211,119280.0,119270.0,0.2530955]
[1753190946919,1.69733211,119280.0,119270.0,0.2530955]
[1753190947120,1.69833211,119280.0,119270.0,0.2530955]
[1753190947421,1.69733211,119280.0,119270.0,0.2530955]
[1753190947913,1.69633211,119280.0,119270.0,0.2530955]
[1753190948118,1.69733211,119280.0,119270.0,0.2530955]
[1753190948813,1.33653211,119280.0,119270.0,0.2530955]
[1753190949019,1.31880754,119280.0,119270.0,0.2530955]
[1753190949322,1.3365963,119280.0,119270.0,0.2530955]
[1753190951914,1.3365963,119280.0,119270.0,0.2493055]
[1753190952115,0.2565755,119270.0,119260.0,1.3330312]
[1753190952417,0.6288059,119270.0,119260.0,1.3330312]
[1753190953722,0.6288059,119270.0,119260.0,1.3340312]
[1753190953918,0.6288059,119270.0,119260.0,0.7581112]
[1753190954223,0.6288059,119270.0,119260.0,0.7658112]
[1753190954821,0.61101714,119270.0,119260.0,0.7658112]
[1753190957222,0.61101714,119270.0,119260.0,1.03160747]
[1753190957223,0.52237177,119270.0,119260.0,1.03160747]
[1753190957723,0.52237177,119270.0,119260.0,1.09192356]
[1753190959525,0.2565755,119270.0,119260.0,1.09192356]
[1753190959827,0.52237177,119270.0,119260.0,1.09192356]
[1753190962226,0.52237177,119270.0,119260.0,0.82612729]
[1753190962425,0.52237177,119270.0,119260.0,1.09192356]
[1753190963427,0.54016585,119270.0,119260.0,1.03160747]
[1753190966729,0.27436958,119270.0,119260.0,1.03160747]
[1753190966929,0.54016585,119270.0,119260.0,1.03160747]
[1753190967231,0.27436958,119270.0,119260.0,1.03160747]
[1753190967427,0.54016585,119270.0,119260.0,1.03160747]
[1753190967929,0.52237177,119270.0,119260.0,1.03160747]
[1753190968332,0.52237177,119270.0,119260.0,1.09192356]
[1753190971432,0.52237177,119270.0,119260.0,1.03160747]
[1753190974635,1.09805177,119270.0,119260.0,1.03160747]
[1753190976935,1.09805177,119270.0,119260.0,0.7658112]
[1753190977139,1.09805177,119270.0,119260.0,0.98970527]
[1753190978043,0.52237177,119270.0,119260.0,0.98970527]
[1753190978244,1.09801177,119270.0,119260.0,0.723909]
[1753190978546,1.11575031,119270.0,119260.0,0.3967624]
[1753190978737,1.36380804,119270.0,119260.0,0.06131609]
[1753190978937,1.36380804,119270.0,119260.0,0.001]
[1753190979340,1.72460804,119270.0,119260.0,0.001]
[1753190979745,1.7525595,119260.0,119250.0,1.29467399]
[1753190979946,2.29164204,119260.0,119250.0,0.39333399]
[1753190980442,2.3000398,119260.0,119250.0,0.39333399]
[1753190981246,1.5689,119260.0,119250.0,1.02729026]
[1753190981546,1.5,119260.0,119250.0,1.29308653]
[1753190981746,1.5,119260.0,119250.0,1.66308653]
[1753190981946,1.501,119260.0,119250.0,1.86868653]
[1753190982143,1.501,119260.0,119250.0,2.12837044]
[1753190982343,1.501,119260.0,119250.0,1.54257417]
[1753190982548,1.5,119260.0,119250.0,2.14937044]
[1753190982747,0.0002,119270.0,119260.0,0.2025595]
[1753190982947,0.03611,119290.0,119280.0,0.2490614]
[1753190983152,0.05384482,119290.0,119280.0,1.54189813]
[1753190983349,0.1787774,119290.0,119280.0,1.54189813]
[1753190983551,0.01121,119290.0,119280.0,1.54189813]
[1753190983752,0.1787774,119290.0,119280.0,1.54189813]
[1753190984353,0.1797774,119290.0,119280.0,1.54189813]
[1753190984752,0.1807774,119290.0,119280.0,1.54189813]
[1753190985653,0.1807774,119290.0,119280.0,1.1877214]
[1753190985853,0.1807774,119290.0,119280.0,1.54189813]
[1753190986848,0.01321,119290.0,119280.0,1.54189813]
[1753190987056,0.002,119290.0,119280.0,1.92137235]
[1753190987549,0.002,119290.0,119280.0,2.23137235]
[1753190987750,0.001,119290.0,119280.0,2.23237235]
[1753190988156,0.001,119290.0,119280.0,1.92237235]
[1753190988358,0.3036335,119300.0,119290.0,0.2490474]
[1753190988555,0.33795809,119300.0,119290.0,0.96632413]
[1753190988850,0.36149809,119300.0,119290.0,0.96632413]
[1753190989050,0.71567482,119300.0,119290.0,1.02002]
[1753190989253,0.71567482,119300.0,119290.0,1.1852874]
[1753190989455,0.36249809,119300.0,119290.0,1.1875874]
[1753190990255,0.36249809,119300.0,119290.0,1.1852874]
[1753190992255,0.36249809,119300.0,119290.0,0.65692]
[1753190992657,0.36249809,119300.0,119290.0,1.01772]
[1753190992859,0.71667482,119300.0,119290.0,1.1852874]
[1753190997059,0.71667482,119300.0,119290.0,0.8244874]
[1753191000157,0.71667482,119300.0,119290.0,1.1852874]
[1753191000358,0.02992459,119300.0,119290.0,1.53946413]
[1753191000560,0.02620459,119300.0,119290.0,1.54176413]
[1753191000763,0.01871459,119300.0,119290.0,1.54176413]
[1753191001063,0.18626789,119300.0,119290.0,1.54176413]
[1753191001263,0.01871459,119300.0,119290.0,1.54176413]
[1753191001457,0.19375789,119300.0,119290.0,1.54176413]
[1753191001653,0.19375789,119300.0,119290.0,1.1875874]
[1753191001858,0.02620459,119300.0,119290.0,1.54176413]
[1753191003162,0.19375789,119300.0,119290.0,1.54176413]
[1753191003666,0.02620459,119300.0,119290.0,1.88176413]
[1753191003864,0.02620459,119300.0,119290.0,1.85176413]
[1753191004259,0.02620459,119300.0,119290.0,1.54176413]
[1753191004462,0.02620459,119300.0,119290.0,1.86176413]
[1753191005465,0.0002,119310.0,119300.0,0.2283033]
[1753191005764,0.2342359,119320.0,119310.0,0.2513193]
[1753191005968,0.2788359,119320.0,119310.0,1.54173603]
[1753191006560,0.2954459,119320.0,119310.0,1.54173603]
[1753191006761,0.0445198,119320.0,119310.0,1.54173603]
[1753191006963,0.0283398,119320.0,119310.0,1.54173603]
[1753191007364,0.0246198,119320.0,119310.0,1.54173603]
[1753191007563,0.192145,119320.0,119310.0,1.54173603]